fUSD/lending_fUSD_20240301
["ID","MTS","AMOUNT","RATE_DAILY","PERIOD"]
[316009515,1709325057751,-500.0,0.00022027,2]
[316009516,1709325057760,-500.0,0.00022027,2]
[316009517,1709325057770,-500.0,0.00022027,2]
[316009518,1709325057779,-500.0,0.00022027,2]
[316009519,1709325057788,-500.0,0.00022027,2]
[316009520,1709325057798,-404.2,0.00022027,2]
[316009521,1709325057807,-500.0,0.00022027,2]
[316009522,1709325057817,-500.0,0.00022027,2]
[316009523,1709325057827,-500.0,0.00022027,2]
[316009524,1709325057837,-500.0,0.00022027,2]
[316009525,1709325057846,-500.0,0.00022027,2]
[316009526,1709325057855,-500.0,0.00022027,2]
[316009527,1709325057865,-500.0,0.00022027,2]
[316009528,1709325057874,-1095.13,0.00022027,2]
[316009529,1709325057884,-500.0,0.00022027,2]
[316009530,1709325057893,-500.0,0.00022027,2]
[316009531,1709325057903,-500.0,0.00022027,2]
[316009532,1709325057912,-500.0,0.00022027,2]
[316009533,1709325057922,-500.0,0.00022027,2]
[316009534,1709325057933,-500.0,0.00022027,2]
[316009535,1709325057941,-501.45851128,0.00022027,2]
[316009536,1709325057951,-500.0,0.00022027,2]
[316009537,1709325057961,-500.0,0.00022027,2]
[316009538,1709325057970,-576.13,0.00022027,2]
[316009539,1709325057980,-793.28,0.00022027,2]
[316009540,1709325057990,-154.68181555,0.00022027,2]
[316009541,1709325058002,-649.5,0.00022027,2]
[316009542,1709325058011,-500.0,0.00022027,2]
[316009543,1709325058021,-500.0,0.00022027,2]
[316009544,1709325058031,-500.0,0.00022027,2]
[316009545,1709325058040,-500.0,0.00022027,2]
[316009546,1709325058050,-500.0,0.00022027,2]
[316009547,1709325058059,-500.0,0.00022027,2]
[316009548,1709325058070,-500.0,0.00022027,2]
[316009549,1709325058079,-500.0,0.00022027,2]
[316009550,1709325058088,-500.0,0.00022027,2]
[316009551,1709325058097,-807.39,0.00022027,2]
[316009552,1709325058107,-777.74,0.00022027,2]
[316009553,1709325058116,-588.0274671,0.00022027,2]
[316009554,1709325058126,-500.0,0.00022027,2]
[316009555,1709325058134,-500.0,0.00022027,2]
[316009556,1709325058143,-500.0,0.00022027,2]
[316009557,1709325058153,-500.0,0.00022027,2]
[316009558,1709325058163,-5832.94,0.00022027,2]
[316009559,1709325058173,-500.0,0.00022027,2]
[316009560,1709325058184,-2556.17,0.00022027,2]
[316009561,1709325058193,-500.0,0.00022027,2]
[316009562,1709325058202,-500.0,0.00022027,2]
[316009563,1709325058212,-500.0,0.00022027,2]
[316009564,1709325058221,-500.0,0.00022027,2]
[316009565,1709325058230,-500.0,0.00022027,2]
[316009566,1709325058240,-500.0,0.00022027,2]
[316009567,1709325058249,-630.96,0.00022027,2]
[316009568,1709325058259,-525.47064693,0.00022027,2]
[316009569,1709325058268,-500.0,0.00022027,2]
[316009570,1709325058277,-500.0,0.00022027,2]
[316009571,1709325058286,-500.0,0.00022027,2]
[316009572,1709325058295,-500.0,0.00022027,2]
[316009573,1709325058304,-2541.7,0.00022027,2]
[316009574,1709325058314,-717.66,0.00022027,2]
[316009575,1709325058323,-500.0,0.00022027,2]
[316009576,1709325058332,-500.0,0.00022027,2]
[316009577,1709325058341,-500.0,0.00022027,2]
[316009578,1709325058350,-1190.85,0.00022027,2]
[316009579,1709325058359,-500.0,0.00022027,2]
[316009580,1709325058369,-500.0,0.00022027,2]
[316009581,1709325058378,-500.0,0.00022027,2]
[316009582,1709325058388,-1257.43,0.00022027,2]
[316009583,1709325058398,-1933.92,0.00022027,2]
[316009584,1709325058407,-500.0,0.00022027,2]
[316009585,1709325058417,-500.0,0.00022027,2]
[316009586,1709325058426,-500.0,0.00022027,2]
[316009587,1709325058436,-6685.34,0.00022027,2]
[316009588,1709325058446,-500.0,0.00022027,2]
[316009589,1709325058455,-798.45,0.00022027,2]
[316009590,1709325058465,-500.0,0.00022027,2]
[316009591,1709325058474,-500.0,0.00022027,2]
[316009592,1709325058482,-500.0,0.00022027,2]
[316009593,1709325058492,-500.0,0.00022027,2]
[316009594,1709325058500,-833.2,0.00022027,2]
[316009595,1709325058510,-500.0,0.00022027,2]
[316009596,1709325058519,-500.0,0.00022027,2]
[316009597,1709325058528,-500.0,0.00022027,2]
[316009598,1709325058537,-13127.88,0.00022027,2]
[316009599,1709325058546,-4843.16,0.00022027,2]
[316009600,1709325058555,-739.55,0.00022027,2]
[316009601,1709325058564,-500.0,0.00022027,2]
[316009602,1709325058574,-510.38087869,0.00022027,2]
[316009603,1709325058582,-489.64975626,0.00022027,2]
[316009604,1709325058592,-870.9,0.00022027,2]
[316009605,1709325058601,-500.0,0.00022027,2]
[316009606,1709325058610,-21180.03,0.00022027,2]
[316009607,1709325058619,-2351.69,0.00022027,2]
[316009608,1709325058628,-151.0,0.00022027,7]
[316009609,1709325058637,-500.0,0.00022027,2]
[316009610,1709325058646,-500.0,0.00022027,2]
[316009611,1709325058655,-500.0,0.00022027,2]
[316009612,1709325058664,-184.71853678,0.00022027,2]
[316009613,1709325058673,-23347.63,0.00022027,2]
[316009614,1709325058683,-500.0,0.00022027,2]
[316009615,1709325058692,-500.0,0.00022027,2]
[316009616,1709325058702,-4956.68,0.00022027,2]
[316009617,1709325058711,-500.0,0.00022027,2]
[316009618,1709325058720,-500.0,0.00022027,2]
[316009619,1709325058729,-1558.45,0.00022027,2]
[316009620,1709325058738,-500.0,0.00022027,2]
[316009621,1709325058747,-335.06945113,0.00022027,2]
[316009622,1709325058757,-500.0,0.00022027,2]
[316009623,1709325058766,-500.0,0.00022027,2]
[316009624,1709325058775,-3125.66,0.00022027,2]
[316009625,1709325058785,-500.0,0.00022027,2]
[316009626,1709325058794,-667.12,0.00022027,2]
[316009627,1709325058803,-2738.18,0.00022027,2]
[316009628,1709325058813,-500.0,0.00022027,2]
[316009629,1709325058822,-500.0,0.00022027,2]
[316009630,1709325058831,-500.0,0.00022027,2]
[316009631,1709325058841,-500.0,0.00022027,2]
[316009632,1709325058850,-500.0,0.00022027,2]
[316009633,1709325058859,-500.0,0.00022027,2]
[316009634,1709325058868,-500.0,0.00022027,2]
[316009635,1709325058877,-833.39,0.00022027,2]
[316009636,1709325058886,-500.0,0.00022027,2]
[316009637,1709325058895,-2229.45,0.00022027,2]
[316009638,1709325058904,-610.29,0.00022027,2]
[316009639,1709325058914,-500.0,0.00022027,2]
[316009640,1709325058923,-1678.54,0.00022027,2]
[316009641,1709325058933,-500.0,0.00022027,2]
[316009642,1709325058942,-528.69415712,0.00022027,2]
[316009643,1709325058951,-2098.48,0.00022027,2]
[316009644,1709325058960,-503.81,0.00022027,2]
[316009645,1709325058969,-500.0,0.00022027,2]
[316009646,1709325058981,-786.34,0.00022027,2]
[316009647,1709325058991,-500.0,0.00022027,2]
[316009648,1709325059000,-500.0,0.00022027,2]
[316009649,1709325059010,-2418.44,0.00022027,2]
[316009650,1709325059019,-1899.02,0.00022027,2]
[316009651,1709325059029,-506.27664014,0.00022027,2]
[316009652,1709325059039,-500.0,0.00022027,2]
[316009653,1709325059048,-22491.46,0.00022027,2]
[316009654,1709325059058,-1323.61,0.00022027,2]
[316009655,1709325059067,-500.0,0.00022027,2]
[316009656,1709325059078,-500.0,0.00022027,2]
[316009657,1709325059087,-500.0,0.00022027,2]
[316009658,1709325059096,-983.93,0.00022027,2]
[316009659,1709325059106,-1814.42,0.00022027,2]
[316009660,1709325059115,-500.0,0.00022027,2]
[316009661,1709325059125,-500.0,0.00022027,2]
[316009662,1709325059135,-500.0,0.00022027,2]
[316009663,1709325059144,-500.0,0.00022027,2]
[316009664,1709325059154,-1115.97,0.00022027,2]
[316009665,1709325059163,-1675.44,0.00022027,2]
[316009666,1709325059173,-767.44,0.00022027,2]
[316009667,1709325059184,-500.0,0.00022027,2]
[316009668,1709325059194,-500.0,0.00022027,2]
[316009669,1709325059204,-896.73,0.00022027,2]
[316009670,1709325059214,-500.0,0.00022027,2]
[316009671,1709325059223,-802.5,0.00022027,2]
[316009672,1709325059233,-500.0,0.00022027,2]
[316009673,1709325059242,-1440.38,0.00022027,2]
[316009674,1709325059252,-500.0,0.00022027,2]
[316009675,1709325059261,-1523.08,0.00022027,2]
[316009676,1709325059271,-287.84634001,0.00022027,2]
[316009677,1709325059281,-503.18,0.00022027,2]
[316009678,1709325059291,-1165.62,0.00022027,2]
[316009679,1709325059300,-500.0,0.00022027,2]
[316009680,1709325059309,-539.77,0.00022027,2]
[316009681,1709325059318,-601.85,0.00022027,2]
[316009682,1709325059328,-1246.8,0.00022027,2]
[316009683,1709325059337,-500.0,0.00022027,2]
[316009684,1709325059347,-1621.23,0.00022027,2]
[316009685,1709325059356,-1237.56,0.00022027,2]
[316009686,1709325059365,-500.0,0.00022027,2]
[316009687,1709325059374,-1145.09,0.00022027,2]
[316009688,1709325059521,-500.0,0.00022027,2]
[316009689,1709325059531,-3124.61,0.00022027,2]
[316009690,1709325059540,-500.0,0.00022027,2]
[316009691,1709325059549,-151.0,0.00022027,7]
[316009692,1709325059559,-500.0,0.00022027,2]
[316009693,1709325059569,-500.0,0.00022027,2]
[316009694,1709325059578,-1329.17,0.00022027,2]
[316009695,1709325059588,-500.0,0.00022027,2]
[316009696,1709325059597,-1000.45,0.00022027,2]
[316009697,1709325059607,-500.0,0.00022027,2]
[316009698,1709325059617,-3328.11,0.00022027,2]
[316009699,1709325059626,-500.0,0.00022027,2]
[316009700,1709325059636,-1846.84,0.00022027,2]
[316009701,1709325059646,-1629.87,0.00022027,2]
[316009702,1709325059655,-500.0,0.00022027,2]
[316009703,1709325059663,-545.33065009,0.00022027,2]
[316009704,1709325059673,-1049.82,0.00022027,2]
[316009705,1709325059683,-500.0,0.00022027,2]
[316009706,1709325059693,-500.0,0.00022027,2]
[316009707,1709325059702,-1099.37,0.00022027,2]
[316009708,1709325059712,-500.0,0.00022027,2]
[316009709,1709325059721,-500.0,0.00022027,2]
[316009710,1709325059731,-500.0,0.00022027,2]
[316009711,1709325059741,-500.0,0.00022027,2]
[316009712,1709325059750,-841.32,0.00022027,2]
[316009713,1709325059760,-530.71,0.00022027,2]
[316009714,1709325059770,-2334.83,0.00022027,2]
[316009715,1709325059779,-668.88,0.00022027,2]
[316009716,1709325059789,-796.92,0.00022027,2]
[316009717,1709325059798,-500.0,0.00022027,2]
[316009718,1709325059809,-531.12,0.00022027,2]
[316009719,1709325059819,-500.0,0.00022027,2]
[316009720,1709325059828,-816.07,0.00022027,2]
[316009721,1709325059838,-897.19,0.00022027,2]
[316009722,1709325059847,-500.0,0.00022027,2]
[316009723,1709325059856,-3575.44,0.00022027,2]
[316009724,1709325059866,-500.0,0.00022027,2]
[316009725,1709325059875,-1761.64,0.00022027,2]
[316009726,1709325059884,-500.0,0.00022027,2]
[316009727,1709325059893,-500.0,0.00022027,2]
[316009728,1709325059904,-1692.3,0.00022027,2]
[316009729,1709325059913,-500.0,0.00022027,2]
[316009730,1709325059922,-500.0,0.00022027,2]
[316009731,1709325059932,-500.0,0.00022027,2]
[316009732,1709325059941,-628.25,0.00022027,2]
[316009733,1709325059951,-500.0,0.00022027,2]
[316009734,1709325059960,-500.0,0.00022027,2]
[316009735,1709325059970,-1144.26,0.00022027,2]
[316009736,1709325059979,-1413.89,0.00022027,2]
[316009737,1709325059988,-1309.85,0.00022027,2]
[316009738,1709325060003,-500.0,0.00022027,2]
[316009739,1709325060012,-2454.74,0.00022027,2]
[316009740,1709325060021,-500.0,0.00022027,2]
[316009741,1709325060031,-500.0,0.00022027,2]
[316009742,1709325060042,-1110.9,0.00022027,2]
[316009743,1709325060052,-500.0,0.00022027,2]
[316009744,1709325060061,-541.55,0.00022027,2]
[316009745,1709325060071,-508.04390894,0.00022027,2]
[316009746,1709325060081,-500.0,0.00022027,2]
[316009747,1709325060091,-697.92,0.00022027,2]
[316009748,1709325060100,-2314.14,0.00022027,2]
[316009749,1709325060110,-689.43,0.00022027,2]
[316009750,1709325060120,-705.17,0.00022027,2]
[316009751,1709325060129,-898.59,0.00022027,2]
[316009752,1709325060139,-547.49,0.00022027,2]
[316009753,1709325060149,-1018.24,0.00022027,2]
[316009754,1709325060159,-500.0,0.00022027,2]
[316009755,1709325060168,-645.07,0.00022027,2]
[316009756,1709325060178,-1138.84,0.00022027,2]
[316009757,1709325060189,-13496.9,0.00022027,2]
[316009758,1709325060199,-500.0,0.00022027,2]
[316009759,1709325060209,-500.0,0.00022027,2]
[316009760,1709325060218,-771.59,0.00022027,2]
[316009761,1709325060229,-1245.99,0.00022027,2]
[316009762,1709325060238,-4551.14,0.00022027,2]
[316009763,1709325060247,-2194.49,0.00022027,2]
[316009764,1709325060257,-500.0,0.00022027,2]
[316009765,1709325060266,-1300.41,0.00022027,2]
[316009766,1709325060276,-858.27,0.00022027,2]
[316009767,1709325060285,-500.0,0.00022027,2]
[316009768,1709325060294,-1006.76,0.00022027,2]
[316009769,1709325060303,-540.0921293,0.00022027,2]
[316009770,1709325060312,-797.83,0.00022027,2]
[316009771,1709325060321,-648.54,0.00022027,2]
[316009772,1709325060330,-500.0,0.00022027,2]
[316009773,1709325060339,-3937.49,0.00022027,2]
[316009774,1709325060349,-1746.33,0.00022027,2]
[316009775,1709325060358,-1738.03,0.00022027,2]
[316009776,1709325060367,-500.0,0.00022027,2]
[316009777,1709325060376,-1501.28,0.00022027,2]
[316009778,1709325060385,-822.79,0.00022027,2]
[316009779,1709325060394,-2615.6,0.00022027,2]
[316009780,1709325060403,-500.0,0.00022027,2]
[316009781,1709325060412,-909.65,0.00022027,2]
[316009782,1709325060421,-500.0,0.00022027,2]
[316009783,1709325060430,-500.0,0.00022027,2]
[316009784,1709325060439,-1731.17,0.00022027,2]
[316009785,1709325060448,-500.0,0.00022027,2]
[316009786,1709325060457,-1095.16,0.00022027,2]
[316009787,1709325060467,-3436.44,0.00022027,2]
[316009788,1709325060476,-796.3,0.00022027,2]
[316009789,1709325060485,-500.0,0.00022027,2]
[316009790,1709325060494,-500.0,0.00022027,2]
[316009791,1709325060503,-605.08,0.00022027,2]
[316009792,1709325060513,-1719.11,0.00022027,2]
[316009793,1709325060522,-695.81,0.00022027,2]
[316009794,1709325060531,-1649.56,0.00022027,2]
[316009795,1709325060540,-500.0,0.00022027,2]
[316009796,1709325060550,-695.1,0.00022027,2]
[316009797,1709325060559,-1849.33,0.00022027,2]
[316009798,1709325060569,-500.0,0.00022027,2]
[316009799,1709325060579,-500.0,0.00022027,2]
[316009800,1709325060588,-151.0,0.00022027,7]
[316009801,1709325060597,-151.0,0.00022027,7]
[316009802,1709325060606,-500.0,0.00022027,2]
[316009803,1709325060616,-500.0,0.00022027,2]
[316009804,1709325060625,-596.04,0.00022027,2]
[316009805,1709325060635,-802.09,0.00022027,2]
[316009806,1709325060645,-914.91,0.00022027,2]
[316009807,1709325060654,-1408.66,0.00022027,2]
[316009808,1709325060663,-500.0,0.00022027,2]
[316009809,1709325060672,-500.0,0.00022027,2]
[316009810,1709325060683,-1096.97,0.00022027,2]
[316009811,1709325060692,-3156.86,0.00022027,2]
[316009812,1709325060701,-500.0,0.00022027,2]
[316009813,1709325060711,-2515.07,0.00022027,2]
[316009814,1709325060720,-205.004529,0.00022027,7]
[316009815,1709325060730,-205.004529,0.00022027,7]
[316009816,1709325060739,-500.0,0.00022027,2]
[316009817,1709325060748,-500.0,0.00022027,2]
[316009818,1709325060757,-500.0,0.00022027,2]
[316009819,1709325060767,-500.0,0.00022027,2]
[316009820,1709325060776,-500.0,0.00022027,2]
[316009821,1709325060785,-205.004529,0.00022027,7]
[316009822,1709325060794,-576.12,0.00022027,2]
[316009823,1709325060803,-205.004529,0.00022027,7]
[316009824,1709325060813,-500.0,0.00022027,2]
[316009825,1709325060822,-1405.35,0.00022027,2]
[316009826,1709325060831,-500.0,0.00022027,2]
[316009827,1709325060841,-500.0,0.00022027,2]
[316009828,1709325060850,-571.01,0.00022027,2]
[316009829,1709325060858,-829.65,0.00022027,2]
[316009830,1709325060867,-1280.88,0.00022027,2]
[316009831,1709325060876,-500.0,0.00022027,2]
[316009832,1709325060886,-2102.13,0.00022027,2]
[316009833,1709325060895,-1130.38,0.00022027,2]
[316009834,1709325060904,-500.0,0.00022027,2]
[316009835,1709325060914,-500.0,0.00022027,2]
[316009836,1709325060923,-4965.87,0.00022027,2]
[316009837,1709325060934,-9922.92,0.00022027,2]
[316009838,1709325060942,-500.0,0.00022027,2]
[316009839,1709325060952,-520.32,0.00022027,2]
[316009840,1709325060961,-500.0,0.00022027,2]
[316009841,1709325060970,-500.0,0.00022027,2]
[316009842,1709325060981,-798.06,0.00022027,2]
[316009843,1709325060993,-500.0,0.00022027,2]
[316009844,1709325061002,-500.0,0.00022027,2]
[316009845,1709325061011,-730.32,0.00022027,2]
[316009846,1709325061022,-500.0,0.00022027,2]
[316009847,1709325061031,-3463.0,0.00022027,2]
[316009848,1709325061041,-500.0,0.00022027,2]
[316009849,1709325061050,-500.0,0.00022027,2]
[316009850,1709325061059,-1879.42,0.00022027,2]
[316009851,1709325061069,-500.0,0.00022027,2]
[316009852,1709325061078,-928.45,0.00022027,2]
[316009853,1709325061086,-500.0,0.00022027,2]
[316009854,1709325061095,-5669.44,0.00022027,2]
[316009855,1709325061105,-500.0,0.00022027,2]
[316009856,1709325061114,-1230.85,0.00022027,2]
[316009857,1709325061124,-2980.76,0.00022027,2]
[316009858,1709325061133,-500.0,0.00022027,2]
[316009859,1709325061143,-1281.68,0.00022027,2]
[316009860,1709325061153,-500.0,0.00022027,2]
[316009861,1709325061162,-500.0,0.00022027,2]
[316009862,1709325061172,-500.0,0.00022027,2]
[316009863,1709325061181,-791.17,0.00022027,2]
[316009864,1709325061189,-500.0,0.00022027,2]
[316009865,1709325061199,-8137.03,0.00022027,2]
[316009866,1709325061208,-5463.14,0.00022027,2]
[316009867,1709325061218,-500.0,0.00022027,2]
[316009868,1709325061228,-726.54,0.00022027,2]
[316009869,1709325061237,-9818.2,0.00022027,2]
[316009870,1709325061246,-500.0,0.00022027,2]
[316009871,1709325061255,-988.29,0.00022027,2]
[316009872,1709325061264,-500.0,0.00022027,2]
[316009873,1709325061273,-500.0,0.00022027,2]
[316009874,1709325061282,-500.0,0.00022027,2]
[316009875,1709325061292,-500.0,0.00022027,2]
[316009876,1709325061301,-983.46,0.00022027,2]
[316009877,1709325061310,-500.0,0.00022027,2]
[316009878,1709325061320,-500.0,0.00022027,2]
[316009879,1709325061329,-2607.72,0.00022027,2]
[316009880,1709325061338,-500.0,0.00022027,2]
[316009881,1709325061348,-500.0,0.00022027,2]
[316009882,1709325061357,-12050.28,0.00022027,2]
[316009883,1709325061366,-500.0,0.00022027,2]
[316009884,1709325061376,-1744.39,0.00022027,2]
[316009885,1709325061385,-500.0,0.00022027,2]
[316009886,1709325061395,-635.35,0.00022027,2]
[316009887,1709325061404,-151.0,0.00022027,7]
[316009888,1709325061413,-7772.36,0.00022027,2]
[316009889,1709325061423,-4384.09,0.00022027,2]
[316009890,1709325061433,-757.05,0.00022027,2]
[316009891,1709325061443,-500.0,0.00022027,2]
[316009892,1709325061452,-842.18,0.00022027,2]
[316009893,1709325061461,-825.49,0.00022027,2]
[316009894,1709325061470,-500.0,0.00022027,2]
[316009895,1709325061479,-500.0,0.00022027,2]
[316009896,1709325061489,-500.0,0.00022027,2]
[316009897,1709325061498,-1346.15,0.00022027,2]
[316009898,1709325061507,-500.0,0.00022027,2]
[316009899,1709325061516,-1430.59,0.00022027,2]
[316009900,1709325061525,-1119.47,0.00022027,2]
[316009901,1709325061535,-500.0,0.00022027,2]
[316009902,1709325061544,-150.0,0.00022028,2]
[316009903,1709325061553,-150.0,0.00022031,2]
[316009904,1709325061563,-150.0,0.00022031,2]
[316009905,1709325061572,-150.0,0.00022031,2]
[316009906,1709325061581,-1500.0,0.00022032,2]
[316009907,1709325061591,-1500.0,0.00022034,2]
[316009908,1709325061600,-150.0,0.00022034,2]
[316009909,1709325061741,-4360.05709248,0.00022036,2]
[316009910,1709325061750,-3207.98771673,0.00022036,2]
[316009911,1709325061760,-690.7107217,0.00022036,5]
[316009912,1709325061769,-300.0,0.00022037,2]
[316009913,1709325061778,-150.0,0.00022037,2]
[316009914,1709325061788,-300.0,0.00022043,2]
[316009915,1709325061797,-1500.0,0.00022044,2]
[316009916,1709325061806,-150.0,0.00022044,2]
[316009917,1709325061815,-150.0,0.00022044,2]
[316009918,1709325061824,-150.0,0.00022049,2]
[316009919,1709325061834,-150.0,0.00022051,2]
[316009920,1709325061843,-150.0,0.00022053,2]
[316009921,1709325061852,-150.0,0.00022062,2]
[316009922,1709325061861,-150.0,0.00022069,2]
[316009923,1709325061871,-150.0,0.00022069,2]
[316009924,1709325061880,-300.0,0.00022072,2]
[316009925,1709325061889,-150.0,0.00022073,2]
[316009926,1709325061899,-150.0,0.00022073,2]
[316009927,1709325061908,-150.0,0.00022073,2]
[316009928,1709325061918,-300.0,0.00022076,2]
[316009929,1709325061928,-150.0,0.00022078,2]
[316009930,1709325061937,-150.0,0.00022083,2]
[316009931,1709325061947,-150.0,0.00022087,2]
[316009932,1709325061957,-699.3334,0.00022088,2]
[316009933,1709325061967,-9954.06128778,0.00022088,2]
[316009934,1709325061976,-171.41363377,0.00022088,2]
[316009935,1709325061986,-150.0,0.00022088,2]
[316009936,1709325061997,-150.0,0.00022091,2]
[316009937,1709325062007,-300.0,0.00022093,2]
[316009938,1709325062017,-150.0,0.00022096,2]
[316009939,1709325062026,-240.0,0.00022097,2]
[316009940,1709325062035,-4360.05709236,0.00022098,2]
[316009941,1709325062046,-150.0,0.00022101,2]
[316009942,1709325062056,-150.0,0.00022102,2]
[316009943,1709325062065,-150.0,0.00022103,2]
[316009944,1709325062076,-150.0,0.00022103,2]
[316009945,1709325062086,-150.0,0.00022104,2]
[316009946,1709325062095,-199.05,0.0002211,2]
[316009947,1709325062105,-1500.0,0.00022112,2]
[316009948,1709325062115,-150.0,0.00022114,2]
[316009949,1709325062125,-150.0,0.00022115,2]
[316009950,1709325062135,-150.0,0.00022116,2]
[316009951,1709325062144,-300.0,0.0002212,2]
[316009952,1709325062154,-349.0,0.00022121,2]
[316009953,1709325062164,-153.0,0.00022121,2]
[316009954,1709325062173,-150.0,0.00022122,2]
[316009955,1709325062185,-150.0,0.00022122,2]
[316009956,1709325062195,-150.0,0.00022124,2]
[316009957,1709325062205,-150.0,0.00022125,2]
[316009958,1709325062215,-150.0,0.00022127,2]
[316009959,1709325062225,-150.0,0.00022129,2]
[316009960,1709325062235,-1500.0,0.0002213,2]
[316009961,1709325062245,-339.87480405,0.00022134,2]
[316009962,1709325062255,-212.85167781,0.00022134,2]
[316009963,1709325062265,-266.15170977,0.00022134,2]
[316009964,1709325062274,-202.99234002,0.00022135,2]
[316009965,1709325062284,-3032.88854408,0.00022136,3]
[316009966,1709325062293,-500.0,0.00022136,2]
[316009967,1709325062302,-252.15744589,0.00022136,2]
[316009968,1709325062312,-500.0,0.00022136,2]
[316009969,1709325062322,-500.0,0.00022136,2]
[316009970,1709325062332,-500.0,0.00022136,2]
[316009971,1709325062341,-500.0,0.00022136,2]
[316009972,1709325062351,-500.0,0.00022136,2]
[316009973,1709325062361,-500.0,0.00022136,2]
[316009974,1709325062371,-500.0,0.00022136,2]
[316009975,1709325062381,-500.0,0.00022136,2]
[316009976,1709325062390,-500.0,0.00022136,2]
[316009977,1709325062400,-500.0,0.00022136,2]
[316009978,1709325062410,-500.0,0.00022136,2]
[316009979,1709325062419,-500.0,0.00022136,2]
[316009980,1709325062429,-500.0,0.00022136,2]
[316009981,1709325062438,-500.0,0.00022136,2]
[316009982,1709325062448,-336.79892254,0.00022136,2]
[316009983,1709325062457,-500.0,0.00022136,2]
[316009984,1709325062467,-509.37167482,0.00022136,2]
[316009985,1709325062476,-500.0,0.00022136,2]
[316009986,1709325062486,-500.0,0.00022136,2]
[316009987,1709325062495,-500.0,0.00022136,2]
[316009988,1709325062504,-500.0,0.00022136,2]
[316009989,1709325062514,-500.0,0.00022136,2]
[316009990,1709325062523,-500.0,0.00022136,2]
[316009991,1709325062533,-579.47,0.00022136,2]
[316009992,1709325062543,-500.0,0.00022136,2]
[316009993,1709325062552,-500.0,0.00022136,2]
[316009994,1709325062562,-528.63628359,0.00022136,2]
[316009995,1709325062572,-538.23247337,0.00022136,2]
[316009996,1709325062581,-500.0,0.00022136,2]
[316009997,1709325062590,-500.0,0.00022136,2]
[316009998,1709325062598,-500.0,0.00022136,2]
[316009999,1709325062607,-500.0,0.00022136,2]
[316010000,1709325062617,-500.0,0.00022136,2]
[316010001,1709325062627,-500.0,0.00022136,2]
[316010002,1709325062636,-378.46718869,0.00022136,2]
[316010003,1709325062645,-506.36215734,0.00022136,2]
[316010004,1709325062655,-500.0,0.00022136,2]
[316010005,1709325062664,-500.0,0.00022136,2]
[316010006,1709325062674,-500.0,0.00022136,2]
[316010007,1709325062685,-500.0,0.00022136,2]
[316010008,1709325062694,-500.0,0.00022136,2]
[316010009,1709325062704,-500.0,0.00022136,2]
[316010010,1709325062713,-500.0,0.00022136,2]
[316010011,1709325062723,-500.0,0.00022136,2]
[316010012,1709325062733,-500.0,0.00022136,2]
[316010013,1709325062742,-500.0,0.00022136,2]
[316010014,1709325062751,-500.0,0.00022136,2]